[Event "Titled Tuesday Blitz July 18 Early 2023"]
[White "Joshi, Pankaj"]
[Black "Herman, Daniel"]
[WhiteFideId "5006210"]
[BlackFideId "30935008"]
[WhiteElo "2273"]
[BlackElo "2423"]
[Result "0-1"]
[Round "9"]
[TimeControl "180+2"]
[Date "2023.07.18"]
[WhiteClock "0:00:00"]
[BlackClock "0:00:08"]
[Board "126"]

1. d4 {[%clk 0:03:00]}  Nf6 {[%clk 0:02:58]} 2. Bf4 {[%clk 0:03:01]}  g6 {[%clk 0:02:58]} 3. Nc3 {[%clk 0:03:00]}  d5 {[%clk 0:02:57]} 4. e3 {[%clk 0:03:01]}  Bg7 {[%clk 0:02:56]} 5. h4 {[%clk 0:03:01]}  h5 {[%clk 0:02:56]} 6. Nf3 {[%clk 0:03:00]}  O-O {[%clk 0:02:49]} 7. Be2 {[%clk 0:03:00]}  c5 {[%clk 0:02:45]} 8. Ne5 {[%clk 0:02:58]}  Nc6 {[%clk 0:02:42]} 9. f3 {[%clk 0:02:19]}  cxd4 {[%clk 0:02:35]} 10. exd4 {[%clk 0:02:20]}  Qb6 {[%clk 0:02:35]} 11. Nxc6 {[%clk 0:02:15]}  bxc6 {[%clk 0:02:36]} 12. Na4 {[%clk 0:02:04]}  Qa5+ {[%clk 0:02:32]} 13. c3 {[%clk 0:02:05]}  Nd7 {[%clk 0:02:17]} 14. b4 {[%clk 0:02:03]}  Qd8 {[%clk 0:02:16]} 15. Nc5 {[%clk 0:01:53]}  Nxc5 {[%clk 0:02:12]} 16. bxc5 {[%clk 0:01:54]}  Qa5 {[%clk 0:02:12]} 17. Qb3 {[%clk 0:01:47]}  Bxd4 {[%clk 0:02:06]} 18. Bd2 {[%clk 0:01:20]}  Bg7 {[%clk 0:01:53]} 19. c4 {[%clk 0:01:16]}  Qxc5 {[%clk 0:01:53]} 20. Rc1 {[%clk 0:01:16]}  Qd6 {[%clk 0:01:46]} 21. cxd5 {[%clk 0:01:02]}  Qg3+ {[%clk 0:01:44]} 22. Kf1 {[%clk 0:01:02]}  cxd5 {[%clk 0:01:31]} 23. Be3 {[%clk 0:01:02]}  Be6 {[%clk 0:01:24]} 24. Qb4 {[%clk 0:00:49]}  Qe5 {[%clk 0:01:16]} 25. Bf4 {[%clk 0:00:36]}  Qd4 {[%clk 0:01:16]} 26. Qxd4 {[%clk 0:00:32]}  Bxd4 {[%clk 0:01:16]} 27. Rc7 {[%clk 0:00:32]}  Rfc8 {[%clk 0:01:13]} 28. Ba6 {[%clk 0:00:26]}  Rxc7 {[%clk 0:01:12]} 29. Bxc7 {[%clk 0:00:27]}  Bf5 {[%clk 0:00:57]} 30. Ke2 {[%clk 0:00:26]}  e6 {[%clk 0:00:52]} 31. Rd1 {[%clk 0:00:23]}  Bb6 {[%clk 0:00:51]} 32. Be5 {[%clk 0:00:21]}  Rd8 {[%clk 0:00:50]} 33. Bf6 {[%clk 0:00:20]}  Rd7 {[%clk 0:00:48]} 34. Bb5 {[%clk 0:00:20]}  Rc7 {[%clk 0:00:48]} 35. Rd2 {[%clk 0:00:19]}  Rc2 {[%clk 0:00:45]} 36. Kd1 {[%clk 0:00:18]}  Rxd2+ {[%clk 0:00:44]} 37. Kxd2 {[%clk 0:00:19]}  d4 {[%clk 0:00:33]} 38. a4 {[%clk 0:00:19]}  Bb1 {[%clk 0:00:22]} 39. g4 {[%clk 0:00:18]}  hxg4 {[%clk 0:00:21]} 40. fxg4 {[%clk 0:00:19]}  Ba2 {[%clk 0:00:16]} 41. h5 {[%clk 0:00:18]}  gxh5 {[%clk 0:00:17]} 42. gxh5 {[%clk 0:00:18]}  Bd5 {[%clk 0:00:17]} 43. h6 {[%clk 0:00:18]}  Be4 {[%clk 0:00:13]} 44. Be8 {[%clk 0:00:13]}  Bg6 {[%clk 0:00:12]} 45. Bb5 {[%clk 0:00:11]}  Kh7 {[%clk 0:00:12]} 46. Bg7 {[%clk 0:00:11]}  f5 {[%clk 0:00:11]} 47. Bd7 {[%clk 0:00:10]}  Bf7 {[%clk 0:00:10]} 48. Bc6 {[%clk 0:00:05]}  f4 {[%clk 0:00:09]} 49. Be4+ {[%clk 0:00:05]}  Bg6 {[%clk 0:00:08]} 50. Bf3 {[%clk 0:00:00]}  d3 {[%clk 0:00:08]} 0-1


[Site "https://www.chess.com"]

[Event "Titled Tuesday Blitz July 18 Early 2023"]
[White "Mazurkiewicz, Michal"]
[Black "arturdailima"]
[WhiteFideId "1124943"]
[WhiteElo "2411"]
[BlackElo "2271"]
[Result "1-0"]
[Round "9"]
[TimeControl "180+2"]
[Date "2023.07.18"]
[WhiteClock "0:00:15"]
[BlackClock "0:00:34"]
[Board "127"]

1. e4 {[%clk 0:02:59]}  c5 {[%clk 0:03:00]} 2. Nf3 {[%clk 0:02:59]}  d6 {[%clk 0:03:01]} 3. g3 {[%clk 0:02:59]}  Nf6 {[%clk 0:03:00]} 4. d3 {[%clk 0:02:58]}  g6 {[%clk 0:02:59]} 5. Bg2 {[%clk 0:02:58]}  Bg7 {[%clk 0:02:59]} 6. O-O {[%clk 0:02:58]}  O-O {[%clk 0:03:00]} 7. Re1 {[%clk 0:02:57]}  Nc6 {[%clk 0:03:00]} 8. e5 {[%clk 0:02:56]}  dxe5 {[%clk 0:02:59]} 9. Nxe5 {[%clk 0:02:57]}  Nxe5 {[%clk 0:02:58]} 10. Rxe5 {[%clk 0:02:58]}  Qd6 {[%clk 0:02:55]} 11. Bf4 {[%clk 0:02:56]}  Qb6 {[%clk 0:02:33]} 12. Nc3 {[%clk 0:02:53]}  Qxb2 {[%clk 0:02:29]} 13. Rxc5 {[%clk 0:02:52]}  Nh5 {[%clk 0:02:23]} 14. Be3 {[%clk 0:02:44]}  Rb8 {[%clk 0:01:50]} 15. Rb1 {[%clk 0:02:41]}  Qa3 {[%clk 0:01:50]} 16. Rb3 {[%clk 0:01:45]}  Qa6 {[%clk 0:01:47]} 17. Nd5 {[%clk 0:01:45]}  Be6 {[%clk 0:01:39]} 18. Nc7 {[%clk 0:01:38]}  Qxa2 {[%clk 0:01:35]} 19. Nxe6 {[%clk 0:01:37]}  fxe6 {[%clk 0:01:35]} 20. Rc7 {[%clk 0:01:20]}  Bf6 {[%clk 0:01:28]} 21. Bc5 {[%clk 0:01:08]}  Rfc8 {[%clk 0:01:25]} 22. Rbxb7 {[%clk 0:00:42]}  Rxc7 {[%clk 0:01:21]} 23. Rxb8+ {[%clk 0:00:42]}  Kf7 {[%clk 0:01:21]} 24. d4 {[%clk 0:00:40]}  e5 {[%clk 0:01:11]} 25. c3 {[%clk 0:00:30]}  exd4 {[%clk 0:01:08]} 26. Bxd4 {[%clk 0:00:26]}  Bxd4 {[%clk 0:01:01]} 27. Qxd4 {[%clk 0:00:25]}  Qa1+ {[%clk 0:00:56]} 28. Bf1 {[%clk 0:00:25]}  Qxc3 {[%clk 0:00:55]} 29. Qd5+ {[%clk 0:00:25]}  e6 {[%clk 0:00:53]} 30. Qd8 {[%clk 0:00:23]}  e5 {[%clk 0:00:41]} 31. Qf8+ {[%clk 0:00:20]}  Ke6 {[%clk 0:00:40]} 32. Re8+ {[%clk 0:00:20]}  Kd5 {[%clk 0:00:40]} 33. Rd8+ {[%clk 0:00:16]}  Kc6 {[%clk 0:00:38]} 34. Qd6+ {[%clk 0:00:14]}  Kb7 {[%clk 0:00:37]} 35. Bg2+ {[%clk 0:00:15]}  Rc6 {[%clk 0:00:34]} 36. Bxc6+ {[%clk 0:00:14]}  Qxc6 {[%clk 0:00:35]} 37. Rb8+ {[%clk 0:00:14]}  Ka6 {[%clk 0:00:34]} 38. Qxc6+ {[%clk 0:00:15]} 1-0


[Site "https://www.chess.com"]

[Event "Titled Tuesday Blitz July 18 Early 2023"]
[White "Levitan, Ronit"]
[Black "Sovetbekova, Nurai"]
[WhiteFideId "2815109"]
[BlackFideId "13801910"]
[WhiteElo "2243"]
[BlackElo "2361"]
[Result "1-0"]
[Round "9"]
[TimeControl "180+2"]
[Date "2023.07.18"]
[WhiteClock "0:00:37"]
[BlackClock "0:00:03"]
[Board "131"]

1. e4 {[%clk 0:03:00]}  c5 {[%clk 0:02:59]} 2. c3 {[%clk 0:02:59]}  Nf6 {[%clk 0:02:58]} 3. e5 {[%clk 0:02:59]}  Nd5 {[%clk 0:02:59]} 4. d4 {[%clk 0:02:59]}  cxd4 {[%clk 0:02:56]} 5. cxd4 {[%clk 0:03:00]}  d6 {[%clk 0:02:54]} 6. Nf3 {[%clk 0:02:57]}  Nc6 {[%clk 0:02:54]} 7. Bc4 {[%clk 0:02:57]}  dxe5 {[%clk 0:02:53]} 8. dxe5 {[%clk 0:02:56]}  Ndb4 {[%clk 0:02:53]} 9. O-O {[%clk 0:02:56]}  Qxd1 {[%clk 0:02:52]} 10. Rxd1 {[%clk 0:02:57]}  Nc2 {[%clk 0:02:52]} 11. Na3 {[%clk 0:02:56]}  Nxa1 {[%clk 0:02:51]} 12. Nb5 {[%clk 0:02:55]}  Bd7 {[%clk 0:02:50]} 13. Nc7+ {[%clk 0:02:52]}  Kd8 {[%clk 0:02:50]} 14. Nxa8 {[%clk 0:02:53]}  e6 {[%clk 0:02:46]} 15. Bg5+ {[%clk 0:02:49]}  Be7 {[%clk 0:02:36]} 16. Rxa1 {[%clk 0:02:48]}  Bxg5 {[%clk 0:02:23]} 17. Nxg5 {[%clk 0:02:47]}  Nxe5 {[%clk 0:02:23]} 18. Bb3 {[%clk 0:02:36]}  h6 {[%clk 0:02:14]} 19. f4 {[%clk 0:02:32]}  hxg5 {[%clk 0:02:13]} 20. fxe5 {[%clk 0:02:32]}  Bc6 {[%clk 0:02:04]} 21. Rd1+ {[%clk 0:01:55]}  Ke7 {[%clk 0:02:02]} 22. Nc7 {[%clk 0:01:55]}  Rc8 {[%clk 0:02:02]} 23. Nxe6 {[%clk 0:01:55]}  fxe6 {[%clk 0:02:00]} 24. Rd6 {[%clk 0:01:55]}  Bd5 {[%clk 0:01:52]} 25. Bxd5 {[%clk 0:01:54]}  exd5 {[%clk 0:01:53]} 26. Rxd5 {[%clk 0:01:46]}  Rc1+ {[%clk 0:01:51]} 27. Kf2 {[%clk 0:01:46]}  Rc2+ {[%clk 0:01:52]} 28. Kg3 {[%clk 0:01:47]}  Rxb2 {[%clk 0:01:52]} 29. Ra5 {[%clk 0:01:46]}  a6 {[%clk 0:01:50]} 30. h3 {[%clk 0:01:44]}  Ke6 {[%clk 0:01:46]} 31. Kf3 {[%clk 0:01:44]}  Rc2 {[%clk 0:01:28]} 32. g3 {[%clk 0:01:40]}  Rc3+ {[%clk 0:01:21]} 33. Kg4 {[%clk 0:01:39]}  Re3 {[%clk 0:01:10]} 34. Rc5 {[%clk 0:01:23]}  Re2 {[%clk 0:00:55]} 35. Rc7 {[%clk 0:01:17]}  Rxa2 {[%clk 0:00:53]} 36. Rxb7 {[%clk 0:01:17]}  Kxe5 {[%clk 0:00:51]} 37. Kxg5 {[%clk 0:01:17]}  Ra3 {[%clk 0:00:48]} 38. Kg4 {[%clk 0:01:11]}  Kf6 {[%clk 0:00:47]} 39. Rb6+ {[%clk 0:01:10]}  Kf7 {[%clk 0:00:45]} 40. h4 {[%clk 0:01:10]}  a5 {[%clk 0:00:41]} 41. Ra6 {[%clk 0:01:09]}  a4 {[%clk 0:00:41]} 42. Kf4 {[%clk 0:01:09]}  Ra1 {[%clk 0:00:41]} 43. g4 {[%clk 0:01:09]}  a3 {[%clk 0:00:40]} 44. Kg5 {[%clk 0:01:09]}  a2 {[%clk 0:00:33]} 45. Ra7+ {[%clk 0:01:07]}  Kf8 {[%clk 0:00:33]} 46. h5 {[%clk 0:01:05]}  Kg8 {[%clk 0:00:28]} 47. Kg6 {[%clk 0:01:04]}  Kf8 {[%clk 0:00:29]} 48. g5 {[%clk 0:00:58]}  Rd1 {[%clk 0:00:20]} 49. Ra8+ {[%clk 0:00:53]}  Ke7 {[%clk 0:00:18]} 50. Rxa2 {[%clk 0:00:54]}  Rg1 {[%clk 0:00:10]} 51. Ra5 {[%clk 0:00:51]}  Kf8 {[%clk 0:00:10]} 52. Ra7 {[%clk 0:00:37]}  Rg2 {[%clk 0:00:09]} 53. Rf7+ {[%clk 0:00:37]}  Kg8 {[%clk 0:00:07]} 54. Rxg7+ {[%clk 0:00:38]}  Kh8 {[%clk 0:00:03]} 55. Ra7 {[%clk 0:00:37]} 1-0


[Site "https://www.chess.com"]

[Event "Titled Tuesday Blitz July 18 Early 2023"]
[White "Cardenas Carbajal, Nilson"]
[Black "micke12a"]
[WhiteFideId "8401128"]
[WhiteElo "2188"]
[BlackElo "2341"]
[Result "0-1"]
[Round "9"]
[TimeControl "180+2"]
[Date "2023.07.18"]
[WhiteClock "0:00:07"]
[BlackClock "0:01:17"]
[Board "135"]

1. e4 {[%clk 0:02:56]}  c5 {[%clk 0:02:59]} 2. d4 {[%clk 0:02:54]}  e6 {[%clk 0:02:58]} 3. Nf3 {[%clk 0:02:53]}  cxd4 {[%clk 0:02:58]} 4. c3 {[%clk 0:02:53]}  d3 {[%clk 0:02:57]} 5. Bxd3 {[%clk 0:02:52]}  Nc6 {[%clk 0:02:57]} 6. O-O {[%clk 0:02:51]}  Nf6 {[%clk 0:02:57]} 7. c4 {[%clk 0:02:48]}  d5 {[%clk 0:02:41]} 8. exd5 {[%clk 0:02:45]}  exd5 {[%clk 0:02:41]} 9. Re1+ {[%clk 0:02:29]}  Be7 {[%clk 0:02:41]} 10. cxd5 {[%clk 0:01:42]}  Nxd5 {[%clk 0:02:41]} 11. Ng5 {[%clk 0:01:24]}  Nf6 {[%clk 0:02:08]} 12. Qe2 {[%clk 0:00:46]}  O-O {[%clk 0:02:04]} 13. Nc3 {[%clk 0:00:39]}  h6 {[%clk 0:02:02]} 14. Nge4 {[%clk 0:00:35]}  Nd4 {[%clk 0:01:39]} 15. Qe3 {[%clk 0:00:31]}  Nxe4 {[%clk 0:01:32]} 16. Qxe4 {[%clk 0:00:31]}  Bf5 {[%clk 0:01:28]} 17. Qxe7 {[%clk 0:00:24]}  Bxd3 {[%clk 0:01:25]} 18. Qxd8 {[%clk 0:00:21]}  Raxd8 {[%clk 0:01:23]} 19. Be3 {[%clk 0:00:22]}  Nc2 {[%clk 0:01:23]} 20. Bxa7 {[%clk 0:00:18]}  Nxa1 {[%clk 0:01:21]} 21. Rxa1 {[%clk 0:00:19]}  b5 {[%clk 0:01:20]} 22. a3 {[%clk 0:00:17]}  Bc4 {[%clk 0:01:20]} 23. Bc5 {[%clk 0:00:17]}  Rfe8 {[%clk 0:01:20]} 24. h3 {[%clk 0:00:17]}  Rd2 {[%clk 0:01:20]} 25. b4 {[%clk 0:00:14]}  Rc2 {[%clk 0:01:19]} 26. Bd4 {[%clk 0:00:13]}  Rd8 {[%clk 0:01:19]} 27. Be5 {[%clk 0:00:13]}  f6 {[%clk 0:01:18]} 28. Bc7 {[%clk 0:00:07]}  Rd7 {[%clk 0:01:17]} 0-1


[Site "https://www.chess.com"]

[Event "Titled Tuesday Blitz July 18 Early 2023"]
[White "Cheer_Down"]
[Black "Feliz Dotel, Dewar Bienvenido"]
[BlackFideId "6402801"]
[WhiteElo "2429"]
[BlackElo "2070"]
[Result "1-0"]
[Round "9"]
[TimeControl "180+2"]
[Date "2023.07.18"]
[WhiteClock "0:00:05"]
[BlackClock "0:00:00"]
[Board "137"]

1. e4 {[%clk 0:02:51]}  e5 {[%clk 0:02:58]} 2. Nf3 {[%clk 0:02:50]}  Nc6 {[%clk 0:02:58]} 3. Bc4 {[%clk 0:02:50]}  Nf6 {[%clk 0:02:58]} 4. d3 {[%clk 0:02:50]}  Be7 {[%clk 0:02:54]} 5. O-O {[%clk 0:02:50]}  O-O {[%clk 0:02:52]} 6. Re1 {[%clk 0:02:50]}  h6 {[%clk 0:02:52]} 7. a4 {[%clk 0:02:40]}  d6 {[%clk 0:02:35]} 8. a5 {[%clk 0:02:38]}  a6 {[%clk 0:02:29]} 9. Nc3 {[%clk 0:02:22]}  Bg4 {[%clk 0:02:21]} 10. h3 {[%clk 0:02:18]}  Bxf3 {[%clk 0:02:21]} 11. Qxf3 {[%clk 0:02:18]}  Nd4 {[%clk 0:02:21]} 12. Qd1 {[%clk 0:02:18]}  c6 {[%clk 0:02:21]} 13. Be3 {[%clk 0:02:10]}  d5 {[%clk 0:02:19]} 14. exd5 {[%clk 0:01:55]}  cxd5 {[%clk 0:02:20]} 15. Ba2 {[%clk 0:01:44]}  Nxc2 {[%clk 0:02:02]} 16. Bb6 {[%clk 0:01:39]}  Qc8 {[%clk 0:01:50]} 17. Qxc2 {[%clk 0:01:39]}  d4 {[%clk 0:01:50]} 18. Qb3 {[%clk 0:01:07]}  dxc3 {[%clk 0:01:49]} 19. Rac1 {[%clk 0:01:07]}  Qf5 {[%clk 0:01:17]} 20. Rxc3 {[%clk 0:01:07]}  Bd8 {[%clk 0:01:03]} 21. d4 {[%clk 0:00:47]}  Bxb6 {[%clk 0:00:55]} 22. Rf3 {[%clk 0:00:45]}  Qg5 {[%clk 0:00:39]} 23. dxe5 {[%clk 0:00:40]}  Bd4 {[%clk 0:00:31]} 24. exf6 {[%clk 0:00:25]}  Bxf6 {[%clk 0:00:32]} 25. Re4 {[%clk 0:00:19]}  Qc1+ {[%clk 0:00:16]} 26. Kh2 {[%clk 0:00:19]}  Qxb2 {[%clk 0:00:15]} 27. Qa4 {[%clk 0:00:15]}  Be5+ {[%clk 0:00:12]} 28. g3 {[%clk 0:00:15]}  Bf6 {[%clk 0:00:12]} 29. Rg4 {[%clk 0:00:15]}  Kh8 {[%clk 0:00:11]} 30. Kg2 {[%clk 0:00:12]}  Qb5 {[%clk 0:00:11]} 31. Qb3 {[%clk 0:00:10]}  Qxb3 {[%clk 0:00:10]} 32. Rxb3 {[%clk 0:00:10]}  Rab8 {[%clk 0:00:10]} 33. Rbb4 {[%clk 0:00:09]}  Be7 {[%clk 0:00:10]} 34. Rbf4 {[%clk 0:00:08]}  f5 {[%clk 0:00:09]} 35. Rg6 {[%clk 0:00:07]}  Bf6 {[%clk 0:00:05]} 36. Rc4 {[%clk 0:00:07]}  b6 {[%clk 0:00:05]} 37. axb6 {[%clk 0:00:04]}  Rxb6 {[%clk 0:00:06]} 38. g4 {[%clk 0:00:05]}  Rb2 {[%clk 0:00:04]} 39. Ra4 {[%clk 0:00:05]}  fxg4 {[%clk 0:00:02]} 40. hxg4 {[%clk 0:00:05]}  Bg5 {[%clk 0:00:01]} 41. Raxa6 {[%clk 0:00:05]}  Rfxf2+ {[%clk 0:00:01]} 42. Kg3 {[%clk 0:00:05]}  Rg2+ {[%clk 0:00:01]} 43. Kf3 {[%clk 0:00:04]}  Rbf2+ {[%clk 0:00:00]} 44. Ke4 {[%clk 0:00:05]} 1-0


[Site "https://www.chess.com"]

[Event "Titled Tuesday Blitz July 18 Early 2023"]
[White "Bueno, Alfeu Junior Varela"]
[Black "Magallanes, Rey Jomar"]
[WhiteFideId "2108879"]
[BlackFideId "5205948"]
[WhiteElo "2397"]
[BlackElo "2264"]
[Result "1/2-1/2"]
[Round "9"]
[TimeControl "180+2"]
[Date "2023.07.18"]
[WhiteClock "0:00:05"]
[BlackClock "0:00:47"]
[Board "139"]

1. e4 {[%clk 0:03:00]}  c5 {[%clk 0:02:37]} 2. Nc3 {[%clk 0:03:00]}  d6 {[%clk 0:02:37]} 3. f4 {[%clk 0:03:00]}  Nc6 {[%clk 0:02:34]} 4. Nf3 {[%clk 0:03:01]}  Nf6 {[%clk 0:02:33]} 5. Bb5 {[%clk 0:03:02]}  Bd7 {[%clk 0:02:33]} 6. d3 {[%clk 0:03:02]}  g6 {[%clk 0:02:31]} 7. O-O {[%clk 0:03:02]}  Bg7 {[%clk 0:02:31]} 8. Bxc6 {[%clk 0:03:00]}  Bxc6 {[%clk 0:02:31]} 9. Qe1 {[%clk 0:03:01]}  O-O {[%clk 0:02:31]} 10. Qh4 {[%clk 0:03:01]}  d5 {[%clk 0:02:28]} 11. f5 {[%clk 0:02:54]}  dxe4 {[%clk 0:02:26]} 12. dxe4 {[%clk 0:02:55]}  e6 {[%clk 0:02:21]} 13. Bg5 {[%clk 0:02:49]}  h6 {[%clk 0:02:15]} 14. Bxh6 {[%clk 0:02:48]}  exf5 {[%clk 0:02:13]} 15. exf5 {[%clk 0:02:19]}  Bxf3 {[%clk 0:02:11]} 16. Rxf3 {[%clk 0:02:18]}  Qd4+ {[%clk 0:02:07]} 17. Qxd4 {[%clk 0:02:18]}  cxd4 {[%clk 0:02:04]} 18. Bxg7 {[%clk 0:02:18]}  Kxg7 {[%clk 0:02:05]} 19. Nb5 {[%clk 0:02:18]}  Rad8 {[%clk 0:02:02]} 20. Nxa7 {[%clk 0:02:08]}  Rd5 {[%clk 0:02:02]} 21. fxg6 {[%clk 0:01:57]}  Ra5 {[%clk 0:01:59]} 22. Raf1 {[%clk 0:01:52]}  fxg6 {[%clk 0:01:57]} 23. Nc8 {[%clk 0:01:50]}  Rxc8 {[%clk 0:01:52]} 24. Rxf6 {[%clk 0:01:49]}  Rxc2 {[%clk 0:01:52]} 25. Rf7+ {[%clk 0:01:46]}  Kh6 {[%clk 0:01:52]} 26. Rxb7 {[%clk 0:01:43]}  Rxa2 {[%clk 0:01:52]} 27. Rd1 {[%clk 0:01:33]}  d3 {[%clk 0:01:46]} 28. h3 {[%clk 0:01:25]}  d2 {[%clk 0:01:44]} 29. Kf2 {[%clk 0:01:18]}  Raxb2 {[%clk 0:01:35]} 30. Rxb2 {[%clk 0:01:16]}  Rxb2 {[%clk 0:01:36]} 31. Ke2 {[%clk 0:01:16]}  Kg5 {[%clk 0:01:35]} 32. Rxd2 {[%clk 0:01:15]}  Rb3 {[%clk 0:01:34]} 33. Kf2 {[%clk 0:01:13]}  Rc3 {[%clk 0:01:31]} 34. Re2 {[%clk 0:01:11]}  Kf5 {[%clk 0:01:30]} 35. Re3 {[%clk 0:01:11]}  Rc2+ {[%clk 0:01:29]} 36. Kg3 {[%clk 0:01:11]}  g5 {[%clk 0:01:28]} 37. Rf3+ {[%clk 0:01:09]}  Kg6 {[%clk 0:01:28]} 38. Rd3 {[%clk 0:01:10]}  Kf5 {[%clk 0:01:27]} 39. Rd5+ {[%clk 0:01:08]}  Kf6 {[%clk 0:01:27]} 40. Kf3 {[%clk 0:01:06]}  Rc3+ {[%clk 0:01:26]} 41. Kg4 {[%clk 0:01:06]}  Rc4+ {[%clk 0:01:25]} 42. Kg3 {[%clk 0:01:02]}  Rc3+ {[%clk 0:01:26]} 43. Kf2 {[%clk 0:01:01]}  Rc2+ {[%clk 0:01:26]} 44. Kf3 {[%clk 0:01:01]}  Rc3+ {[%clk 0:01:26]} 45. Ke2 {[%clk 0:01:00]}  Rc2+ {[%clk 0:01:26]} 46. Rd2 {[%clk 0:01:00]}  Rc3 {[%clk 0:01:25]} 47. Kf2 {[%clk 0:00:58]}  Kf5 {[%clk 0:01:25]} 48. Re2 {[%clk 0:00:52]}  Rb3 {[%clk 0:01:23]} 49. Re8 {[%clk 0:00:51]}  Rb2+ {[%clk 0:01:23]} 50. Kg3 {[%clk 0:00:51]}  Rb3+ {[%clk 0:01:22]} 51. Kh2 {[%clk 0:00:51]}  Rb2 {[%clk 0:01:22]} 52. Rh8 {[%clk 0:00:49]}  Rb4 {[%clk 0:01:14]} 53. Rh5 {[%clk 0:00:45]}  Kg6 {[%clk 0:01:14]} 54. Rh8 {[%clk 0:00:45]}  Kf5 {[%clk 0:01:14]} 55. Rf8+ {[%clk 0:00:42]}  Kg6 {[%clk 0:01:13]} 56. Rf3 {[%clk 0:00:42]}  Kh5 {[%clk 0:01:11]} 57. Kg3 {[%clk 0:00:36]}  Ra4 {[%clk 0:01:08]} 58. Re3 {[%clk 0:00:35]}  Rb4 {[%clk 0:01:08]} 59. Kf3 {[%clk 0:00:35]}  Ra4 {[%clk 0:01:06]} 60. g3 {[%clk 0:00:32]}  Rb4 {[%clk 0:01:04]} 61. Re4 {[%clk 0:00:25]}  Rb3+ {[%clk 0:01:04]} 62. Re3 {[%clk 0:00:25]}  Rb4 {[%clk 0:01:04]} 63. Re2 {[%clk 0:00:22]}  Rb3+ {[%clk 0:01:04]} 64. Kg2 {[%clk 0:00:22]}  Ra3 {[%clk 0:01:02]} 65. Rf2 {[%clk 0:00:21]}  Rb3 {[%clk 0:01:02]} 66. Rd2 {[%clk 0:00:19]}  Ra3 {[%clk 0:01:01]} 67. Rd5 {[%clk 0:00:17]}  Ra2+ {[%clk 0:01:01]} 68. Kf3 {[%clk 0:00:18]}  Ra3+ {[%clk 0:01:01]} 69. Kf2 {[%clk 0:00:18]}  Ra2+ {[%clk 0:01:02]} 70. Ke3 {[%clk 0:00:18]}  Ra3+ {[%clk 0:01:02]} 71. Rd3 {[%clk 0:00:19]}  Ra4 {[%clk 0:01:02]} 72. Kf3 {[%clk 0:00:13]}  Rb4 {[%clk 0:01:01]} 73. Re3 {[%clk 0:00:09]}  Ra4 {[%clk 0:01:00]} 74. Kg2 {[%clk 0:00:05]}  Ra2+ {[%clk 0:00:59]} 75. Kf3 {[%clk 0:00:05]}  Ra4 {[%clk 0:00:59]} 76. Re4 {[%clk 0:00:03]}  Ra3+ {[%clk 0:00:59]} 77. Kf2 {[%clk 0:00:03]}  Ra2+ {[%clk 0:00:59]} 78. Re2 {[%clk 0:00:04]}  Ra3 {[%clk 0:00:59]} 79. Kg2 {[%clk 0:00:04]}  Rb3 {[%clk 0:00:58]} 80. Rf2 {[%clk 0:00:04]}  Ra3 {[%clk 0:00:58]} 81. Kh2 {[%clk 0:00:03]}  Rb3 {[%clk 0:00:58]} 82. Rg2 {[%clk 0:00:04]}  Ra3 {[%clk 0:00:57]} 83. Kg1 {[%clk 0:00:04]}  Ra1+ {[%clk 0:00:57]} 84. Kf2 {[%clk 0:00:05]}  Ra2+ {[%clk 0:00:57]} 85. Kf3 {[%clk 0:00:06]}  Ra3+ {[%clk 0:00:57]} 86. Ke4 {[%clk 0:00:06]}  Ra4+ {[%clk 0:00:57]} 87. Kd5 {[%clk 0:00:07]}  Ra5+ {[%clk 0:00:54]} 88. Kc4 {[%clk 0:00:07]}  Ra4+ {[%clk 0:00:53]} 89. Kb3 {[%clk 0:00:07]}  Rd4 {[%clk 0:00:53]} 90. Kc3 {[%clk 0:00:07]}  Ra4 {[%clk 0:00:49]} 91. Kb3 {[%clk 0:00:07]}  Rd4 {[%clk 0:00:49]} 92. h4 {[%clk 0:00:04]}  gxh4 {[%clk 0:00:47]} 93. gxh4 {[%clk 0:00:05]}  Kxh4 {[%clk 0:00:47]} 94. Rc2 {[%clk 0:00:04]}  Rd3+ {[%clk 0:00:47]} 95. Rc3 {[%clk 0:00:05]}  Rxc3+ {[%clk 0:00:47]} 96. Kxc3 {[%clk 0:00:05]} 1/2-1/2


[Site "https://www.chess.com"]

[Event "Titled Tuesday Blitz July 18 Early 2023"]
[White "Kev4444444444"]
[Black "Slovineanu, Viacheslav"]
[BlackFideId "13900510"]
[WhiteElo "2228"]
[BlackElo "2365"]
[Result "1-0"]
[Round "9"]
[TimeControl "180+2"]
[Date "2023.07.18"]
[WhiteClock "0:00:29"]
[BlackClock "0:00:00"]
[Board "140"]

1. c4 {[%clk 0:02:43]}  e5 {[%clk 0:02:59]} 2. Nc3 {[%clk 0:02:33]}  Bb4 {[%clk 0:02:58]} 3. Nd5 {[%clk 0:02:31]}  Be7 {[%clk 0:02:58]} 4. g3 {[%clk 0:02:28]}  Nf6 {[%clk 0:02:54]} 5. Nxe7 {[%clk 0:02:26]}  Qxe7 {[%clk 0:02:53]} 6. Bg2 {[%clk 0:02:26]}  d6 {[%clk 0:02:49]} 7. d3 {[%clk 0:02:26]}  h6 {[%clk 0:02:47]} 8. Nf3 {[%clk 0:02:24]}  O-O {[%clk 0:02:46]} 9. O-O {[%clk 0:02:24]}  c5 {[%clk 0:02:46]} 10. a3 {[%clk 0:02:18]}  Nc6 {[%clk 0:02:46]} 11. Rb1 {[%clk 0:02:16]}  a5 {[%clk 0:02:31]} 12. b3 {[%clk 0:02:11]}  Bf5 {[%clk 0:02:21]} 13. e4 {[%clk 0:02:00]}  Bg4 {[%clk 0:02:20]} 14. Bd2 {[%clk 0:01:58]}  Nd4 {[%clk 0:02:14]} 15. Bc3 {[%clk 0:01:57]}  Nd7 {[%clk 0:02:07]} 16. Bxd4 {[%clk 0:01:56]}  cxd4 {[%clk 0:01:51]} 17. Qe2 {[%clk 0:01:55]}  Nc5 {[%clk 0:01:37]} 18. Qd2 {[%clk 0:01:42]}  Bxf3 {[%clk 0:01:29]} 19. Bxf3 {[%clk 0:01:41]}  Ra7 {[%clk 0:01:07]} 20. Bd1 {[%clk 0:01:33]}  f5 {[%clk 0:01:01]} 21. exf5 {[%clk 0:01:31]}  Rxf5 {[%clk 0:01:00]} 22. b4 {[%clk 0:01:32]}  Ne6 {[%clk 0:00:54]} 23. Bg4 {[%clk 0:01:25]}  Rf6 {[%clk 0:00:52]} 24. Bxe6+ {[%clk 0:01:24]}  Qxe6 {[%clk 0:00:46]} 25. bxa5 {[%clk 0:01:25]}  Qd7 {[%clk 0:00:40]} 26. Rb5 {[%clk 0:01:25]}  Rf8 {[%clk 0:00:29]} 27. Rfb1 {[%clk 0:01:24]}  Rfa8 {[%clk 0:00:27]} 28. Qb4 {[%clk 0:01:24]}  Qc7 {[%clk 0:00:19]} 29. Rxb7 {[%clk 0:01:09]}  Rxb7 {[%clk 0:00:17]} 30. Qxb7 {[%clk 0:01:08]}  Qxa5 {[%clk 0:00:16]} 31. Qd7 {[%clk 0:01:00]}  Qxa3 {[%clk 0:00:13]} 32. Rb7 {[%clk 0:01:00]}  Qc1+ {[%clk 0:00:13]} 33. Kg2 {[%clk 0:01:00]}  Qg5 {[%clk 0:00:13]} 34. Qxd6 {[%clk 0:00:57]}  Rf8 {[%clk 0:00:12]} 35. Qe6+ {[%clk 0:00:56]}  Kh8 {[%clk 0:00:12]} 36. Rf7 {[%clk 0:00:53]}  Rxf7 {[%clk 0:00:10]} 37. Qxf7 {[%clk 0:00:53]}  Qd2 {[%clk 0:00:09]} 38. Qf8+ {[%clk 0:00:49]}  Kh7 {[%clk 0:00:09]} 39. Qf5+ {[%clk 0:00:49]}  Kh8 {[%clk 0:00:09]} 40. Qe4 {[%clk 0:00:49]}  Kg8 {[%clk 0:00:07]} 41. c5 {[%clk 0:00:47]}  Qc3 {[%clk 0:00:07]} 42. Qxe5 {[%clk 0:00:35]}  Qxd3 {[%clk 0:00:07]} 43. c6 {[%clk 0:00:34]}  Qc4 {[%clk 0:00:06]} 44. c7 {[%clk 0:00:29]}  Kf7 {[%clk 0:00:00]} 45. Qf5+ {[%clk 0:00:29]} 1-0


[Site "https://www.chess.com"]